bitfinex/quotes_SOLUSD_20230120
["timestamp","ask_amount","ask_price","bid_price","bid_amount"]
[1674232765543,108.4322,21.754,21.721,35.5]
[1674232765758,19.35,21.74,21.721,35.5]
[1674232765972,16.85,21.74,21.715,34.55]
[1674232766178,34.51,21.739,21.716,20.0]
[1674232766373,75.43984768,21.739,21.717,34.54]
[1674232766588,75.43984768,21.739,21.717,44.54]
[1674232766797,40.64741142,21.738,21.718,0.96]
[1674232767031,34.51,21.739,21.719,34.54]
[1674232767217,16.85,21.74,21.718,0.96]
[1674232767218,16.85,21.74,21.72,0.96]
[1674232767427,34.51,21.739,21.72,10.0]
[1674232767653,34.51,21.739,21.721,17.0]
[1674232767863,90.91199912,21.738,21.709,34.55]
[1674232768093,34.51,21.737,21.705,34.56]
[1674232768394,30.0,21.736,21.706,30.0]
[1674232768583,35.47,21.735,21.707,34.56]
[1674232768791,20.0,21.734,21.707,34.56]
[1674232769017,35.48,21.733,21.708,27.96]
[1674232769237,20.0,21.732,21.708,27.96]
[1674232769426,19.35,21.73,21.708,10.0]
[1674232769639,35.48,21.729,21.708,10.0]
[1674232770065,35.27407809,21.728,21.708,10.0]
[1674232770276,34.53,21.727,21.708,10.0]
[1674232770481,34.52,21.731,21.709,34.55]
[1674232770695,69.41095942,21.731,21.709,34.55]
[1674232770906,20.0,21.732,21.709,34.55]
[1674232771237,54.89095942,21.735,21.71,10.0]
[1674232771461,34.51,21.734,21.712,10.0]
[1674232771774,20.0,21.733,21.713,17.0]
[1674232771984,34.52,21.732,21.713,17.0]
[1674232772297,34.52,21.732,21.714,10.0]
[1674232772491,34.52,21.732,21.715,17.0]
[1674232773030,34.51,21.738,21.716,65.5]
[1674232773245,34.51,21.739,21.717,17.0]
[1674232773441,34.51,21.739,21.718,35.5]
[1674232773648,34.51,21.739,21.719,17.0]
[1674232773863,18.41224,21.745,21.72,54.85]
[1674232774064,18.41224,21.745,21.723,10.0]
[1674232774289,18.41224,21.745,21.725,139.4]
[1674232774498,18.41224,21.745,21.727,10.0]
[1674232774703,18.41224,21.745,21.728,51.52]
[1674232774902,18.41224,21.745,21.73,19.32]
[1674232775113,18.41224,21.745,21.732,10.0]
[1674232775348,18.41224,21.745,21.733,51.52]
[1674232775665,18.41224,21.745,21.734,10.96]
[1674232775872,18.41224,21.745,21.735,51.51]
[1674232776058,18.41224,21.745,21.736,10.0]
[1674232776264,7.41224,21.745,21.737,17.96]
[1674232776494,42.6305617,21.745,21.734,10.0]
[1674232776817,34.5,21.744,21.72,19.35]
[1674232777006,34.5,21.744,21.721,10.0]
[1674232777223,37.53786171,21.744,21.73,19.21]
[1674232777428,37.06119505,21.743,21.732,10.0]
[1674232777851,5.0,21.75,21.732,10.0]
[1674232778074,5.0,21.75,21.733,0.96]
[1674232778394,42.06119505,21.75,21.732,10.0]
[1674232778580,34.49,21.749,21.732,10.0]
[1674232778788,20.0,21.748,21.732,10.0]
[1674232779025,34.49,21.747,21.732,10.0]
[1674232779339,60.21440717,21.746,21.731,10.0]
[1674232779525,34.5,21.745,21.731,10.0]
[1674232779741,20.0,21.744,21.731,10.0]
[1674232779950,34.5,21.743,21.727,10.0]
[1674232780164,19.23,21.74,21.717,34.54]
[1674232780384,34.51,21.739,21.716,44.54]
[1674232780707,74.77019171,21.739,21.716,10.0]
[1674232780914,74.77019171,21.739,21.717,34.54]
[1674232781133,74.77019171,21.739,21.718,10.0]
[1674232781312,40.21440717,21.748,21.724,54.53]
[1674232781528,34.49,21.747,21.724,70.13033662]
[1674232781736,34.49,21.749,21.73,19.21]
[1674232781957,34.49,21.749,21.731,10.0]
[1674232782156,34.49,21.749,21.732,17.0]
[1674232782610,34.49,21.749,21.733,10.0]
[1674232782810,34.49,21.749,21.734,17.0]
[1674232783334,39.49,21.75,21.734,17.0]
[1674232783525,39.49,21.75,21.735,10.0]
[1674232783734,77.71846505,21.75,21.736,17.0]
[1674232785011,10.0,21.749,21.733,10.0]
[1674232785225,34.49,21.748,21.733,10.0]
[1674232785445,72.71846505,21.748,21.733,10.0]
[1674232785628,38.22846505,21.747,21.733,10.0]
[1674232785841,34.5,21.746,21.733,10.0]
[1674232786489,38.22846505,21.747,21.734,17.0]
[1674232786700,38.22846505,21.745,21.734,17.0]
[1674232787315,5.0,21.75,21.734,17.0]
[1674232787751,38.18513171,21.744,21.734,17.0]
[1674232788597,39.49,21.75,21.734,17.0]
[1674232788782,38.18513171,21.749,21.734,17.0]
[1674232788992,34.49,21.748,21.734,17.0]
[1674232789203,5.0,21.75,21.735,0.96]
[1674232789517,4.5,21.75,21.735,10.0]
[1674232789728,4.5,21.75,21.736,17.0]
[1674232790800,4.5,21.75,21.737,10.0]
[1674232791011,4.5,21.75,21.738,17.0]
[1674232791509,4.5,21.75,21.739,0.96]
[1674232791951,4.5,21.75,21.739,10.0]
[1674232792158,4.5,21.75,21.74,17.0]
[1674232793211,4.5,21.75,21.739,10.0]
[1674232793636,4.5,21.75,21.739,4.0]
[1674232795188,37.42358105,21.75,21.739,4.0]
[1674232795519,67.41358105,21.749,21.733,10.0]
[1674232796556,4.5,21.75,21.733,15.05336]
[1674232796997,4.5,21.75,21.736,10.0]
[1674232797209,4.5,21.75,21.737,51.51]
[1674232797417,4.5,21.75,21.736,10.0]
[1674232797639,33.98577438,21.75,21.736,10.0]
[1674232797850,23.85,21.75,21.736,10.0]
[1674232798050,34.49,21.749,21.736,10.0]
[1674232799641,34.49,21.749,21.733,10.0]
[1674232799963,34.49,21.749,21.734,17.0]
[1674232801093,34.49,21.749,21.731,10.0]
[1674232801310,50.44577438,21.748,21.729,10.0]
[1674232801505,34.49,21.747,21.729,10.0]
[1674232801716,20.0,21.746,21.729,10.0]
[1674232801937,34.5,21.745,21.729,10.0]
[1674232802146,20.0,21.744,21.729,10.0]
[1674232802353,34.5,21.743,21.729,10.0]
[1674232802783,20.0,21.744,21.729,10.0]
[1674232802975,34.49,21.747,21.729,10.0]
[1674232803193,34.49,21.749,21.729,44.52]
[1674232803428,34.49,21.749,21.73,17.96]
[1674232803740,33.36,21.75,21.732,10.0]
[1674232803931,34.49,21.749,21.733,17.0]
[1674232804358,33.36,21.75,21.733,17.0]
[1674232804673,33.36,21.75,21.734,10.0]
[1674232804890,4.5,21.75,21.735,191.87]
[1674232805109,4.5,21.75,21.736,20.0]
[1674232805301,4.5,21.75,21.737,191.87]
[1674232805713,33.98577438,21.75,21.738,10.0]
[1674232805923,33.98577438,21.75,21.739,17.0]
[1674232806146,33.98577438,21.75,21.74,10.0]
[1674232806349,33.98577438,21.75,21.741,17.0]
[1674232807194,62.58577438,21.75,21.74,10.0]
[1674232808578,33.1,21.75,21.74,10.0]
[1674232808788,31.16260971,21.749,21.74,10.0]
[1674232809002,4.5,21.75,21.74,10.0]
[1674232809212,35.66260971,21.75,21.741,17.0]
[1674232809945,4.5,21.75,21.741,17.0]
[1674232810770,4.5,21.75,21.742,10.0]
[1674232810977,4.5,21.75,21.743,17.0]
[1674232811710,4.5,21.75,21.744,10.0]
[1674232811924,4.5,21.75,21.745,17.0]
[1674232813207,4.5,21.75,21.744,10.0]
[1674232813389,35.23594305,21.749,21.744,10.0]
[1674232813812,116.4551,21.759,21.744,10.0]
[1674232814048,177.8028583,21.76,21.744,10.0]
[1674232814049,35.12434238,21.757,21.746,10.0]
[1674232814244,177.8028583,21.76,21.746,44.5]
[1674232814455,177.8028583,21.76,21.746,10.0]
[1674232814661,177.8028583,21.76,21.748,10.0]
[1674232814873,177.8028583,21.76,21.749,17.0]
[1674232815196,177.8028583,21.76,21.75,0.96]
[1674232815409,22.9455583,21.76,21.751,139.4]
[1674232815595,153.4228,21.779,21.753,139.4]
[1674232815805,153.4228,21.779,21.755,139.4]
[1674232816021,153.4228,21.779,21.757,139.4]
[1674232816227,34.44,21.779,21.759,139.4]
[1674232816446,182.0128,21.79,21.761,139.4]
[1674232816753,10.0,21.789,21.763,149.4]
[1674232816968,34.43,21.788,21.764,17.0]
[1674232817175,251.2758139,21.772,21.765,20.0]
[1674232817393,208.5158139,21.772,21.766,51.46]
[1674232817612,208.5158139,21.772,21.767,10.96]
[1674232817799,208.5158139,21.772,21.768,17.0]
[1674232818018,208.5158139,21.772,21.769,0.96]
[1674232818250,137.5158139,21.772,21.769,10.96]
[1674232818445,34.43,21.788,21.77,10.0]
[1674232818656,34.43,21.788,21.771,0.96]
[1674232818871,34.43,21.789,21.771,0.96]
[1674232819400,34.71243626,21.789,21.77,44.46]
[1674232819592,34.71243626,21.789,21.771,0.96]
[1674232819807,0.28243626,21.789,21.771,35.42]
[1674232820157,137.358052,21.79,21.771,35.42]
[1674232820158,18.375252,21.79,21.772,144.44431]
[1674232820363,18.375252,21.79,21.773,17.96]
[1674232820535,67.21434238,21.789,21.771,34.46]
[1674232820741,67.21434238,21.789,21.77,10.0]
[1674232820979,32.78434238,21.788,21.772,10.0]
[1674232821165,34.43,21.787,21.77,10.0]
[1674232821375,28.84,21.78,21.763,10.0]
[1674232821586,34.44,21.779,21.763,10.0]
[1674232821801,67.22434238,21.779,21.763,10.0]
[1674232822020,42.78434238,21.778,21.76,10.0]
[1674232822236,42.78434238,21.778,21.756,10.0]
[1674232822237,34.45,21.777,21.756,10.0]
[1674232822426,31.47889971,21.778,21.756,10.0]
[1674232822638,34.45,21.777,21.759,20.1]
[1674232822859,31.47889971,21.778,21.759,20.1]
[1674232823283,34.43,21.786,21.759,20.1]
[1674232823478,65.90889971,21.786,21.761,10.0]
[1674232823695,65.90889971,21.786,21.762,40.61]
[1674232823696,34.43,21.786,21.762,40.61]
[1674232824129,34.43,21.786,21.763,20.0]
[1674232824339,34.43,21.786,21.764,41.72]
[1674232824561,34.43,21.786,21.766,10.0]
[1674232824765,31.87149971,21.785,21.766,10.0]
[1674232824967,10.0,21.783,21.766,10.0]
[1674232825190,28.86,21.78,21.76,10.0]
[1674232825391,34.44,21.779,21.76,10.0]
[1674232825597,66.31149971,21.779,21.76,10.0]
[1674232825802,31.87149971,21.778,21.76,10.0]
[1674232826033,34.45,21.777,21.758,10.0]
[1674232826253,34.45,21.777,21.756,10.0]
[1674232826449,31.87149971,21.776,21.756,10.0]
[1674232826660,34.45,21.775,21.756,10.0]
[1674232826876,34.44,21.779,21.756,10.0]
[1674232827084,0.96,21.778,21.756,10.0]
[1674232827300,34.45,21.777,21.756,10.0]
[1674232827505,34.44,21.779,21.756,10.0]
[1674232828130,34.44,21.779,21.756,33.01]
[1674232828447,34.44,21.784,21.761,10.0]
[1674232828647,34.43,21.786,21.762,60.66]
[1674232828865,34.43,21.786,21.763,6.00639]
[1674232829073,34.43,21.79,21.765,139.4]
[1674232829277,34.43,21.79,21.771,139.4]
[1674232829608,34.41,21.798,21.773,139.4]
[1674232829796,34.41,21.801,21.775,139.4]
[1674232830012,34.41,21.801,21.776,201.56]
[1674232830341,34.41,21.801,21.777,5.04315]
[1674232830535,34.41,21.801,21.778,157.36]
[1674232830749,34.41,21.801,21.778,162.40292]
[1674232830955,34.41,21.801,21.778,32.04292]
[1674232831193,59.93810105,21.8,21.778,27.0]
[1674232831371,34.41,21.799,21.778,10.0]
[1674232831587,65.74810105,21.799,21.778,10.0]
[1674232831904,10.0,21.798,21.778,10.0]
[1674232832108,34.42,21.797,21.778,10.0]
[1674232832327,65.75810105,21.797,21.778,10.0]
[1674232832769,28.86,21.79,21.778,10.0]
[1674232832951,28.86,21.79,21.776,10.0]
[1674232833162,65.76810105,21.789,21.774,10.0]
[1674232833387,65.76810105,21.789,21.773,10.0]
[1674232833388,34.43,21.789,21.762,17.58]
[1674232833693,30.0,21.788,21.763,15.04639]
[1674232833912,35.39,21.787,21.763,10.0]
[1674232834107,66.72810105,21.787,21.763,10.0]
[1674232834316,10.0,21.785,21.763,10.0]
[1674232834526,54.44,21.784,21.763,10.0]
[1674232834770,28.86,21.78,21.763,10.0]
[1674232835072,35.4,21.779,21.754,10.0]
[1674232835268,20.0,21.778,21.754,10.0]
[1674232835480,44.45,21.777,21.754,10.0]
[1674232835696,34.45,21.777,21.754,10.0]
[1674232835897,34.44,21.779,21.756,149.4]
[1674232836106,34.44,21.779,21.757,17.07]
[1674232836335,10.0,21.779,21.758,10.0]
[1674232836550,34.45,21.778,21.758,10.0]
[1674232837047,34.44,21.779,21.758,10.0]
[1674232837263,34.44,21.784,21.761,139.4]
[1674232837480,34.43,21.788,21.763,139.4]
[1674232837688,34.43,21.788,21.764,20.96]
[1674232837901,34.43,21.788,21.765,22.15593]
[1674232838122,34.43,21.788,21.766,16.0057]
[1674232838338,34.43,21.788,21.767,172.93]
[1674232838526,34.43,21.788,21.768,0.96]
[1674232839161,34.43,21.788,21.768,10.96]
[1674232839381,34.43,21.788,21.769,17.0]
[1674232839597,34.43,21.788,21.77,0.96]
[1674232840215,34.43,21.788,21.77,0.46]
[1674232840430,34.43,21.788,21.77,10.0]
[1674232840759,10.0,21.787,21.77,10.0]
[1674232840969,34.43,21.786,21.77,10.0]
[1674232841150,20.0,21.785,21.768,10.0]
[1674232841361,44.44,21.784,21.766,10.0]
[1674232842005,44.44,21.784,21.761,10.0]
[1674232842221,28.84,21.78,21.761,10.0]
[1674232842431,45.4,21.779,21.761,10.0]
[1674232842642,65.77810105,21.779,21.762,9.85092111]
[1674232842837,10.0,21.778,21.762,9.85092111]
[1674232843043,34.45,21.777,21.762,9.85092111]
[1674232843271,34.45,21.777,21.761,10.0]
[1674232843591,31.80428305,21.776,21.755,10.0]
[1674232843917,54.45,21.775,21.755,10.0]
[1674232844116,10.96,21.774,21.755,10.0]
[1674232844319,28.84,21.77,21.755,10.0]
[1674232844517,34.46,21.769,21.755,10.0]
[1674232845061,31.53761638,21.776,21.755,10.0]
[1674232845278,10.0,21.774,21.755,10.0]
[1674232845466,34.45,21.773,21.755,10.0]
[1674232846831,65.98761638,21.773,21.755,10.0]
[1674232847041,34.45,21.773,21.755,10.0]
[1674232847881,32.49761638,21.772,21.756,7.5]
[1674232848196,32.49761638,21.772,21.752,10.0]
[1674232848197,10.0,21.77,21.752,10.0]
[1674232848412,34.46,21.769,21.752,10.0]
[1674232848956,65.99761638,21.769,21.751,10.0]
[1674232849154,10.0,21.768,21.751,10.0]
[1674232849365,34.46,21.767,21.751,10.0]
[1674232850092,34.46,21.768,21.751,10.0]
[1674232850423,34.46,21.768,21.747,20.23]
[1674232850630,28.6,21.76,21.742,21.88]
[1674232850850,34.48,21.759,21.738,19.5]
[1674232851032,66.01761638,21.759,21.731,19.51]
[1674232851247,10.0,21.758,21.732,10.0]
[1674232851460,34.48,21.757,21.733,19.4]
[1674232851669,70.00428305,21.757,21.733,19.4]
[1674232851886,28.6,21.75,21.732,10.0]
[1674232852211,34.49,21.749,21.732,10.0]
[1674232852610,70.01428305,21.749,21.728,21.01]
[1674232852831,28.6,21.74,21.721,21.76]
[1674232853026,34.51,21.739,21.715,21.75]
[1674232853241,10.0,21.738,21.716,9.5]
[1674232853563,34.51,21.737,21.716,7.0]
[1674232853767,34.51,21.739,21.716,7.0]
[1674232854398,10.0,21.738,21.716,7.0]
[1674232854609,34.51,21.737,21.716,7.0]
[1674232855027,34.51,21.737,21.717,5.05708]
[1674232855259,10.0,21.745,21.72,28.86]
[1674232855576,34.5,21.744,21.721,24.3]
[1674232855787,34.5,21.746,21.721,21.8]
[1674232855992,34.5,21.746,21.722,37.96]
[1674232856303,34.5,21.746,21.724,10.0]
[1674232856525,10.0,21.745,21.724,10.0]
[1674232856732,34.5,21.744,21.724,10.0]
[1674232857125,10.0,21.743,21.724,10.0]
[1674232857337,34.5,21.742,21.724,10.0]
[1674232857760,34.5,21.746,21.724,10.0]
[1674232858185,34.5,21.746,21.726,10.0]
[1674232858418,34.5,21.746,21.727,17.96]
[1674232859022,34.5,21.746,21.721,24.67]
[1674232859248,30.0,21.745,21.72,10.0]
[1674232859468,34.5,21.744,21.72,10.0]
[1674232859654,28.86,21.74,21.718,10.0]
[1674232859989,34.51,21.739,21.718,10.0]
[1674232860181,10.0,21.738,21.718,10.0]
[1674232860389,34.51,21.737,21.718,10.0]
[1674232860617,34.51,21.739,21.718,10.0]
[1674232861142,10.0,21.742,21.718,10.0]
[1674232861379,34.5,21.741,21.718,10.0]
[1674232861677,34.5,21.743,21.718,10.0]
[1674232861864,10.0,21.739,21.718,10.0]
[1674232862075,34.51,21.738,21.718,10.0]
[1674232862507,34.51,21.738,21.716,7.0]
[1674232862702,34.51,21.738,21.712,10.0]
[1674232862703,28.84,21.73,21.712,10.0]
[1674232862908,34.52,21.729,21.712,10.0]
[1674232863125,10.0,21.728,21.712,10.0]
[1674232863349,34.53,21.727,21.712,10.0]
[1674232863878,34.52,21.729,21.712,10.0]
[1674232864090,28.6,21.73,21.712,10.0]
[1674232864405,34.52,21.729,21.712,10.0]
[1674232864617,34.52,21.729,21.706,24.79]
[1674232864815,34.52,21.729,21.705,10.0]
[1674232865021,10.0,21.728,21.705,10.0]
[1674232865346,34.53,21.727,21.705,10.0]
[1674232866380,44.51,21.735,21.706,23.15]
[1674232866591,20.0,21.734,21.706,23.15]
[1674232866801,26.75,21.73,21.705,33.58]
[1674232867122,34.52,21.729,21.705,10.0]
[1674232867673,10.0,21.732,21.705,10.0]
[1674232867851,34.52,21.731,21.705,10.0]
[1674232868060,10.0,21.73,21.705,10.0]
[1674232868293,34.52,21.729,21.705,10.0]
[1674232868605,0.96,21.728,21.705,10.0]
[1674232868800,26.91,21.72,21.694,10.0]
[1674232869013,10.0,21.718,21.694,10.0]
[1674232869226,34.54,21.717,21.694,10.0]
[1674232869648,0.96,21.716,21.694,10.0]
[1674232869866,34.55,21.715,21.694,10.0]
[1674232870073,10.0,21.714,21.694,10.0]
[1674232870289,34.55,21.713,21.694,10.0]
[1674232870712,34.55,21.713,21.696,20.0]
[1674232871121,34.54,21.717,21.697,10.0]
[1674232871752,34.54,21.718,21.697,10.0]
[1674232871970,34.54,21.718,21.698,17.0]
[1674232872386,34.54,21.719,21.699,0.96]
[1674232872603,34.53,21.727,21.699,0.96]
[1674232872822,20.96,21.726,21.699,0.96]
[1674232873130,20.96,21.726,21.699,10.96]
[1674232873131,44.53,21.725,21.699,10.96]
[1674232873350,34.53,21.725,21.7,37.0]
[1674232873571,34.53,21.725,21.701,21.54]
[1674232873872,112.99769355,21.725,21.702,37.0]
[1674232874057,10.0,21.724,21.703,10.0]
[1674232874268,34.53,21.723,21.705,10.0]
[1674232874697,34.53,21.723,21.707,10.0]
[1674232875116,34.53,21.723,21.708,17.0]
[1674232875325,66.76172971,21.723,21.708,17.0]
[1674232875847,10.0,21.722,21.705,10.0]
[1674232876065,26.99,21.72,21.703,10.0]
[1674232876285,34.54,21.719,21.703,10.0]
[1674232876511,34.54,21.721,21.703,10.0]
[1674232877341,66.77172971,21.721,21.703,10.0]
[1674232877651,66.77172971,21.721,21.697,10.0]
[1674232877859,10.0,21.72,21.697,10.0]
[1674232878083,34.54,21.719,21.697,10.0]
[1674232878690,66.77172971,21.719,21.697,10.0]
[1674232878902,10.96,21.718,21.692,10.0]
[1674232879126,10.96,21.718,21.687,21.94]
[1674232879127,26.98,21.71,21.687,21.94]
[1674232879322,34.55,21.709,21.685,10.0]
[1674232879532,34.55,21.709,21.681,99.2424]
[1674232879533,0.96,21.708,21.681,120.9024]
[1674232879733,34.56,21.707,21.672,21.37]
[1674232879949,10.0,21.706,21.673,10.0]
[1674232880155,34.56,21.705,21.675,139.4]
[1674232880390,70.69172971,21.706,21.677,139.4]
[1674232880580,36.13172971,21.705,21.679,139.4]
[1674232880796,34.56,21.704,21.68,29.45]
[1674232881239,36.13172971,21.703,21.68,29.45]
[1674232881429,34.57,21.702,21.68,29.45]
[1674232881634,26.99,21.7,21.68,10.0]
[1674232881844,34.57,21.699,21.68,10.0]
[1674232883542,10.0,21.698,21.68,10.0]
[1674232883761,34.57,21.697,21.68,10.0]
[1674232884162,69.10382171,21.697,21.676,20.6]
[1674232884493,10.0,21.696,21.675,10.0]
[1674232884702,34.58,21.695,21.675,10.0]
[1674232884924,69.11382171,21.695,21.675,10.0]
[1674232885106,69.11382171,21.695,21.675,7.5]
[1674232885636,34.53382171,21.694,21.675,7.5]
[1674232885861,44.58,21.693,21.676,20.0]
[1674232886258,34.58,21.693,21.676,20.0]
[1674232886471,34.57,21.697,21.677,0.96]
[1674232886703,34.57,21.697,21.677,10.96]
[1674232887100,34.57,21.699,21.677,10.96]
[1674232887635,34.57,21.702,21.68,10.0]
[1674232887861,34.57,21.702,21.681,0.96]
[1674232888052,34.57,21.702,21.681,17.96]
[1674232888378,34.56,21.704,21.682,184.78]
[1674232888593,34.55,21.709,21.683,17.96]
[1674232888805,34.55,21.709,21.685,10.0]
[1674232889126,34.56,21.704,21.686,37.0]
[1674232889644,34.53382171,21.703,21.685,10.0]
[1674232889955,34.57,21.702,21.685,10.0]
[1674232890473,34.56,21.704,21.685,10.0]
[1674232890897,113.9049,21.705,21.686,0.96]
[1674232891110,113.9049,21.705,21.686,17.96]
[1674232891832,34.55,21.709,21.688,10.0]
[1674232892043,34.55,21.709,21.689,17.96]
[1674232892675,10.0,21.708,21.69,10.0]
[1674232892901,34.56,21.707,21.691,17.96]
[1674232893215,34.56,21.707,21.691,17.0]
[1674232893403,34.56,21.707,21.68,39.61]
[1674232893404,35.49382171,21.706,21.68,39.61]
[1674232893611,54.56,21.705,21.68,10.0]
[1674232893826,10.96,21.704,21.68,10.0]
[1674232894038,54.56,21.703,21.68,10.0]
[1674232894254,10.96,21.702,21.68,10.0]
[1674232894463,34.57,21.701,21.68,10.0]
[1674232894798,69.10382171,21.701,21.68,10.0]
[1674232895011,34.53382171,21.7,21.68,10.0]
[1674232895321,34.57,21.699,21.68,10.0]
[1674232895844,69.00392105,21.699,21.68,10.0]
[1674232896482,34.57,21.699,21.68,10.0]
[1674232896800,34.43392105,21.698,21.682,10.0]
[1674232896980,34.57,21.697,21.682,10.0]
[1674232897940,34.57,21.699,21.682,10.0]
[1674232898156,26.91,21.7,21.682,10.0]
[1674232898365,68.63712171,21.699,21.683,17.0]
[1674232898679,10.0,21.697,21.68,10.0]
[1674232898888,34.58,21.696,21.68,10.0]
[1674232899496,34.58,21.696,21.678,10.0]
[1674232899497,0.96,21.695,21.678,10.0]
[1674232899713,34.58,21.694,21.678,10.0]
[1674232900031,68.64712171,21.694,21.678,10.0]
[1674232900860,68.64712171,21.694,21.679,17.96]
[1674232901097,68.64712171,21.694,21.678,10.0]
[1674232901287,68.64712171,21.694,21.674,10.0]
[1674232901288,26.99,21.69,21.674,10.0]
[1674232901498,34.59,21.689,21.674,10.0]
[1674232901936,10.0,21.688,21.674,10.0]
[1674232902150,35.55,21.687,21.674,10.0]
[1674232902345,35.55,21.687,21.666,10.0]
[1674232902675,10.0,21.686,21.666,10.0]
[1674232902878,34.59,21.685,21.666,10.0]
[1674232903089,0.96,21.684,21.666,10.0]
[1674232903418,34.6,21.683,21.666,10.0]
[1674232903618,34.59,21.685,21.666,10.0]
[1674232903933,20.96,21.684,21.666,10.0]
[1674232904123,34.6,21.683,21.666,10.0]
[1674232904332,20.0,21.682,21.666,10.0]
[1674232904542,34.6,21.681,21.666,10.0]
[1674232905085,34.59,21.686,21.667,17.96]
[1674232905300,118.2782,21.687,21.667,17.96]
[1674232905504,118.2782,21.687,21.668,10.0]
[1674232905505,34.59,21.686,21.668,10.0]
[1674232905715,34.59,21.686,21.669,17.96]
[1674232905924,34.59,21.688,21.669,36.86843862]
[1674232906133,26.91,21.7,21.669,36.86843862]
[1674232906134,34.58,21.691,21.67,185.81843862]
[1674232906360,34.58,21.694,21.671,17.96]
[1674232906571,34.58,21.694,21.672,187.31]
[1674232906894,34.57,21.701,21.674,139.4]
[1674232907202,151.8381,21.702,21.675,66.05]
[1674232907396,151.8381,21.702,21.675,49.05]
[1674232907602,151.8381,21.702,21.677,10.0]
[1674232907829,151.8381,21.702,21.678,17.96]
[1674232908577,184.30606571,21.702,21.679,10.0]
[1674232908785,184.30606571,21.702,21.68,17.0]
[1674232909101,184.30606571,21.702,21.681,0.96]
[1674232909724,184.30606571,21.702,21.681,10.96]
[1674232909925,184.30606571,21.702,21.683,10.0]
[1674232910135,184.30606571,21.702,21.684,17.0]
[1674232910475,184.30606571,21.702,21.683,10.0]
[1674232911811,184.30606571,21.702,21.684,17.0]
[1674232912136,151.8381,21.702,21.685,10.96]
[1674232912348,151.8381,21.702,21.687,10.0]
[1674232912560,151.8381,21.702,21.688,17.0]